[Event "Hungarian Rapid-ch 2022"]
[Site "Ajka"]
[Date "2022.07.16"]
[Round "5.6"]
[White "Horvath, Adam"]
[Black "Antal, Gergely"]
[Result "1-0"]
[ECO "C07"]
[WhiteElo "2520"]
[BlackElo "2571"]
[Annotator "ChessBase"]
[PlyCount "107"]
[EventDate "2022.07.15"]
[EventType "swiss"]
[EventCountry "HUN"]
[SourceTitle "playchess.com"]
[Source "ChessBase"]
[SourceQuality "1"]
[TimeControl "900+10"]

1. e4 {[%emt 0:00:13]} e6 {[%emt 0:00:13]} 2. d4 {[%emt 0:00:03]} d5 {[%emt 0:00:01]} 3. Nd2 {[%emt 0:00:08]} c5 {[%emt 0:00:10]} 4. exd5 {[%emt 0:00:22]} Qxd5 {[%emt 0:00:02]} 5. dxc5 {[%emt 0:00:02]} Bxc5 {[%emt 0:00:11]} 6. Ngf3 {[%emt 0:00:02]} Nf6 {[%emt 0:00:33]} 7. Bc4 {[%emt 0:00:06]} Qc6 {[%emt 0:00:04]} 8. Qe2 {[%emt 0:00:32]} O-O {[%emt 0:00:06]} 9. O-O {[%emt 0:00:48]} a6 {[%emt 0:00:39]} 10. Nb3 {[%emt 0:00:46]} Bd6 {[%emt 0:00:37]} 11. Bg5 {[%emt 0:01:44]} Nbd7 {[%emt 0:01:52]} 12. Rad1 {[%emt 0:00:30]} Re8 {[%emt 0:00:57]} 13. Rfe1 {[%emt 0:02:03]} Qc7 {[%emt 0:04:18]} 14. Nbd4 {[%emt 0:01:13]} Bf8 {[%emt 0:00:55]} 15. a4 {[%emt 0:02:31]} b6 {[%emt 0:00:02]} 16. Bh4 {[%emt 0:00:13]} Bb7 {[%emt 0:00:14]} 17. Ba2 {[%emt 0:03:44]} Nc5 {[%emt 0:01:52]} 18. Bg3 {[%emt 0:01:01]} Qc8 {[%emt 0:00:01]} 19. Ne5 {[%emt 0:00:02]} Nd5 {[%emt 0:01:10]} 20. c4 {[%emt 0:00:41]} Nf6 {[%emt 0:00:13]} 21. Bh4 {[%emt 0:00:42]} Ncd7 {[%emt 0:00:37]} 22. Nxd7 {[%emt 0:00:17]} Nxd7 {[%emt 0:00:02]} 23. Bb1 {[%emt 0:00:01]} g6 {[%emt 0:00:22]} 24. h3 {[%emt 0:00:32]} Bg7 {[%emt 0:00:01]} 25. b3 {[%emt 0:00:20]} Nc5 {[%emt 0:00:01]} 26. Qe3 {[%emt 0:00:05]} e5 {[%emt 0:00:15]} 27. Ne2 {[%emt 0:00:14]} f5 {[%emt 0:01:24]} 28. Rd6 {[%emt 0:00:38]} Qc7 {[%emt 0:00:30]} 29. Red1 {[%emt 0:00:05]} e4 {[%emt 0:00:36]} 30. Bg3 {[%emt 0:00:12]} Qf7 {[%emt 0:01:26]} 31. Rxb6 {[%emt 0:00:08]} Rac8 {[%emt 0:00:21]} 32. a5 {[%emt 0:00:17]} Nd3 {[%emt 0:00:26]} 33. Bxd3 {[%emt 0:00:01]} exd3 {[%emt 0:00:01]} 34. Qxd3 {[%emt 0:00:02]} g5 {[%emt 0:00:04]} 35. Bd6 {[%emt 0:00:09]} Be4 {[%emt 0:00:06]} 36. Qd2 {[%emt 0:00:02]} f4 {[%emt 0:00:12]} 37. f3 {[%emt 0:00:05]} Bf5 {[%emt 0:00:04]} 38. Nd4 {[%emt 0:00:13]} Bg6 {[%emt 0:00:12]} 39. c5 {[%emt 0:00:14]} h5 {[%emt 0:00:17]} 40. h4 {[%emt 0:00:04]} gxh4 {[%emt 0:00:07]} 41. Qxf4 {[%emt 0:00:04]} Qd5 {[%emt 0:00:05]} 42. Qxh4 {[%emt 0:00:09]} Bf7 {[%emt 0:00:12]} 43. Rxa6 {[%emt 0:00:35]} Rxc5 {[%emt 0:00:15]} 44. Bxc5 {[%emt 0:00:07]} Qxc5 {[%emt 0:00:01]} 45. Kh1 {[%emt 0:00:14]} Qd5 {[%emt 0:00:20]} 46. Rb6 {[%emt 0:00:16]} Rd8 {[%emt 0:00:04]} 47. Rb5 {[%emt 0:00:10]} Qd7 {[%emt 0:00:10]} 48. Rg5 {[%emt 0:00:05]} Re8 {[%emt 0:00:13]} 49. Qg3 {[%emt 0:00:07]} Be6 {[%emt 0:00:33]} 50. Nxe6 {[%emt 0:00:19]} Qxd1+ {[%emt 0:00:02]} 51. Kh2 {[%emt 0:00:01]} Rxe6 {[%emt 0:00:01]} 52. Rxg7+ {[%emt 0:00:01]} Kf8 {[%emt 0:00:01]} 53. Rg8+ {[%emt 0:00:03]} Ke7 {[%emt 0:00:01]} 54. Qg7+ {[%emt 0:00:02]} 1-0

[Event "Hungarian Rapid-ch 2022"]
[Site "Ajka"]
[Date "2022.07.16"]
[Round "5.7"]
[White "Horvath, Csaba"]
[Black "Kovacs, Klara"]
[Result "1-0"]
[ECO "A06"]
[WhiteElo "2506"]
[BlackElo "2098"]
[Annotator "ChessBase"]
[PlyCount "69"]
[EventDate "2022.07.15"]
[EventType "swiss"]
[EventCountry "HUN"]
[SourceTitle "playchess.com"]
[Source "ChessBase"]
[SourceQuality "1"]
[TimeControl "900+10"]

1. Nf3 {[%emt 0:00:13]} d5 {[%emt 0:00:11]} 2. c4 {[%emt 0:00:02]} c6 {[%emt 0:00:01]} 3. e3 {[%emt 0:00:25]} Nf6 {[%emt 0:00:03]} 4. Qc2 {[%emt 0:00:02]} Nbd7 {[%emt 0:00:14]} 5. Nc3 {[%emt 0:00:20]} a6 {[%emt 0:00:44]} 6. d4 {[%emt 0:01:57]} e6 {[%emt 0:00:46]} 7. b3 {[%emt 0:00:02]} Bb4 {[%emt 0:00:08]} 8. a3 {[%emt 0:01:20]} Ba5 {[%emt 0:00:06]} 9. Bd3 {[%emt 0:01:10]} O-O {[%emt 0:00:44]} 10. O-O {[%emt 0:00:09]} Re8 {[%emt 0:00:04]} 11. Bb2 {[%emt 0:00:12]} Bc7 {[%emt 0:00:45]} 12. e4 {[%emt 0:00:19]} e5 {[%emt 0:00:47]} 13. cxd5 {[%emt 0:00:31]} exd4 {[%emt 0:00:44]} 14. Nxd4 {[%emt 0:00:57]} Ne5 {[%emt 0:00:57]} 15. f4 {[%emt 0:01:58]} Bb6 {[%emt 0:02:53]} 16. Na4 {[%emt 0:01:05]} Nxd3 {[%emt 0:00:36]} 17. Qxd3 {[%emt 0:00:14]} Rxe4 {[%emt 0:00:30]} 18. Nxb6 {[%emt 0:00:30]} Qxb6 {[%emt 0:00:04]} 19. dxc6 {[%emt 0:00:27]} bxc6 {[%emt 0:00:47]} 20. Kh1 {[%emt 0:00:27]} Bg4 {[%emt 0:00:43]} 21. h3 {[%emt 0:01:30]} c5 {[%emt 0:01:18]} 22. Nf3 {[%emt 0:01:44]} Bf5 {[%emt 0:01:42]} 23. Nh4 {[%emt 0:00:56]} c4 {[%emt 0:00:33]} 24. Qf3 {[%emt 0:00:16]} Qe6 {[%emt 0:02:26]} 25. g4 {[%emt 0:00:45]} Bxg4 {[%emt 0:00:42]} 26. hxg4 {[%emt 0:00:02]} Nxg4 {[%emt 0:00:06]} 27. Rg1 {[%emt 0:00:40]} h5 {[%emt 0:00:37]} 28. f5 {[%emt 0:00:23]} Qd5 {[%emt 0:00:27]} 29. Rg2 {[%emt 0:00:32]} Rae8 {[%emt 0:00:06]} 30. Rf1 {[%emt 0:00:05]} R4e5 {[%emt 0:00:10]} 31. Bxe5 {[%emt 0:00:23]} Qxe5 {[%emt 0:00:02]} 32. Qf4 {[%emt 0:00:12]} Qf6 {[%emt 0:00:02]} 33. Nf3 {[%emt 0:00:05]} cxb3 {[%emt 0:00:01]} 34. Rd2 {[%emt 0:00:14]} Re3 {[%emt 0:00:27]} 35. Qd4 {[%emt 0:00:18]} 1-0

[Event "Hungarian Rapid-ch 2022"]
[Site "Ajka"]
[Date "2022.07.16"]
[Round "5.8"]
[White "Balint, Vilmos"]
[Black "Kaczur, Florian"]
[Result "1/2-1/2"]
[ECO "B06"]
[WhiteElo "2283"]
[BlackElo "2482"]
[Annotator "ChessBase"]
[PlyCount "102"]
[EventDate "2022.07.15"]
[EventType "swiss"]
[EventCountry "HUN"]
[SourceTitle "playchess.com"]
[Source "ChessBase"]
[SourceQuality "1"]
[TimeControl "900+10"]

1. e4 {[%emt 0:00:14]} g6 {[%emt 0:00:16]} 2. d4 {[%emt 0:00:02]} Bg7 {[%emt 0:00:02]} 3. Nc3 {[%emt 0:00:05]} a6 {[%emt 0:00:04]} 4. a4 {[%emt 0:00:24]} d6 {[%emt 0:00:04]} 5. Bc4 {[%emt 0:00:07]} Nc6 {[%emt 0:00:15]} 6. Be3 {[%emt 0:00:09]} e6 {[%emt 0:00:26]} 7. Nge2 {[%emt 0:00:32]} Nge7 {[%emt 0:00:11]} 8. h4 {[%emt 0:00:13]} h6 {[%emt 0:00:09]} 9. Ba2 {[%emt 0:00:12]} d5 {[%emt 0:02:41]} 10. f3 {[%emt 0:02:42]} b6 {[%emt 0:00:26]} 11. Qd2 {[%emt 0:00:18]} Bb7 {[%emt 0:00:13]} 12. O-O-O {[%emt 0:00:30]} Qd7 {[%emt 0:00:06]} 13. Kb1 {[%emt 0:01:15]} O-O-O {[%emt 0:00:19]} 14. e5 {[%emt 0:00:10]} Na5 {[%emt 0:00:48]} 15. Qd3 {[%emt 0:00:46]} Nec6 {[%emt 0:00:13]} 16. Nc1 {[%emt 0:02:15]} Nb4 {[%emt 0:00:45]} 17. Qe2 {[%emt 0:00:04]} Kb8 {[%emt 0:00:18]} 18. Bb3 {[%emt 0:00:39]} Qe7 {[%emt 0:00:29]} 19. N3a2 {[%emt 0:01:06]} Nxa2 {[%emt 0:00:17]} 20. Bxa2 {[%emt 0:00:05]} c5 {[%emt 0:01:14]} 21. f4 {[%emt 0:01:09]} h5 {[%emt 0:00:12]} 22. f5 {[%emt 0:00:34]} gxf5 {[%emt 0:01:17]} 23. Bg5 {[%emt 0:00:01]} Qe8 {[%emt 0:00:07]} 24. Bxd8 {[%emt 0:00:05]} Qxd8 {[%emt 0:00:01]} 25. Rh3 {[%emt 0:01:02]} cxd4 {[%emt 0:00:10]} 26. Rg3 {[%emt 0:00:11]} Bh6 {[%emt 0:00:38]} 27. Rxd4 {[%emt 0:00:05]} Nc6 {[%emt 0:00:01]} 28. Rd1 {[%emt 0:00:15]} Qxh4 {[%emt 0:01:40]} 29. Rh3 {[%emt 0:00:01]} Qd8 {[%emt 0:01:50]} 30. Rxh5 {[%emt 0:00:27]} Bxc1 {[%emt 0:00:07]} 31. Rxh8 {[%emt 0:00:03]} Qxh8 {[%emt 0:00:02]} 32. Rxc1 {[%emt 0:00:05]} Nxe5 {[%emt 0:00:45]} 33. Re1 {[%emt 0:00:07]} Nd7 {[%emt 0:00:04]} 34. Qe3 {[%emt 0:00:40]} Qh4 {[%emt 0:00:02]} 35. a5 {[%emt 0:00:23]} bxa5 {[%emt 0:00:08]} 36. g3 {[%emt 0:00:06]} Qb4 {[%emt 0:00:45]} 37. Rh1 {[%emt 0:00:11]} d4 {[%emt 0:00:08]} 38. Rh8+ {[%emt 0:00:02]} Ka7 {[%emt 0:00:01]} 39. Qf2 {[%emt 0:00:18]} Nc5 {[%emt 0:00:15]} 40. Rd8 {[%emt 0:00:23]} e5 {[%emt 0:00:26]} 41. Bxf7 {[%emt 0:00:01]} Ne4 {[%emt 0:01:11]} 42. Qxf5 {[%emt 0:00:48]} Nd2+ {[%emt 0:00:07]} 43. Kc1 {[%emt 0:00:01]} Nb3+ {[%emt 0:00:37]} 44. Kb1 {[%emt 0:00:54]} Nd2+ {[%emt 0:00:31]} 45. Ka1 {[%emt 0:00:24]} Qa4+ {[%emt 0:00:28]} 46. Ba2 {[%emt 0:00:01]} Qc6 {[%emt 0:00:12]} 47. Bd5 {[%emt 0:00:47]} Qa4+ {[%emt 0:00:14]} 48. Ba2 {[%emt 0:00:01]} Qc6 {[%emt 0:00:02]} 49. Bd5 {[%emt 0:00:47]} Qa4+ {[%emt 0:00:22]} 50. Ba2 {[%emt 0:00:02]} Qc6 {[%emt 0:00:44]} 51. Bd5 {[%emt 0:00:02]} Qa4+ 1/2-1/2

[Event "Hungarian Rapid-ch 2022"]
[Site "Ajka"]
[Date "2022.07.16"]
[Round "5.9"]
[White "Vertetics, Attila"]
[Black "Laszlo, Janos"]
[Result "1-0"]
[ECO "A05"]
[WhiteElo "2465"]
[BlackElo "2214"]
[Annotator "ChessBase"]
[PlyCount "95"]
[EventDate "2022.07.15"]
[EventType "swiss"]
[EventCountry "HUN"]
[SourceTitle "playchess.com"]
[Source "ChessBase"]
[SourceQuality "1"]
[TimeControl "900+10"]

1. Nf3 {[%emt 0:00:13]} Nf6 {[%emt 0:00:24]} 2. b3 {[%emt 0:00:03]} e6 {[%emt 0:00:18]} 3. Bb2 {[%emt 0:00:02]} d5 {[%emt 0:00:06]} 4. e3 {[%emt 0:00:09]} Be7 {[%emt 0:00:35]} 5. c4 {[%emt 0:00:23]} O-O {[%emt 0:00:08]} 6. Nc3 {[%emt 0:00:13]} c5 {[%emt 0:00:11]} 7. cxd5 {[%emt 0:00:07]} exd5 {[%emt 0:00:01]} 8. d4 {[%emt 0:00:08]} a6 {[%emt 0:00:44]} 9. Be2 {[%emt 0:00:18]} Nc6 10. O-O {[%emt 0:00:15]} Bg4 {[%emt 0:03:55]} 11. dxc5 {[%emt 0:01:20]} Bxc5 {[%emt 0:00:10]} 12. Na4 {[%emt 0:00:07]} Ba7 {[%emt 0:00:40]} 13. Rc1 {[%emt 0:03:07]} Ne4 {[%emt 0:01:53]} 14. Nc3 {[%emt 0:02:45]} Nf6 {[%emt 0:00:11]} 15. Nd4 {[%emt 0:00:38]} Bxd4 {[%emt 0:00:55]} 16. Bxg4 {[%emt 0:00:15]} Be5 {[%emt 0:00:19]} 17. Ba3 {[%emt 0:02:36]} Re8 {[%emt 0:00:47]} 18. Bf3 {[%emt 0:00:23]} Qa5 {[%emt 0:00:29]} 19. Na4 {[%emt 0:00:39]} Ne4 {[%emt 0:02:38]} 20. Bxe4 {[%emt 0:01:18]} dxe4 {[%emt 0:00:10]} 21. Qd7 {[%emt 0:00:02]} Qc7 {[%emt 0:01:30]} 22. Qxc7 {[%emt 0:00:04]} Bxc7 {[%emt 0:00:02]} 23. Nc5 {[%emt 0:00:04]} Bd6 {[%emt 0:01:08]} 24. Nxb7 {[%emt 0:00:04]} Bxa3 {[%emt 0:00:04]} 25. Rxc6 {[%emt 0:00:01]} Rec8 {[%emt 0:00:27]} 26. Rxc8+ {[%emt 0:00:07]} Rxc8 {[%emt 0:00:01]} 27. Rd1 {[%emt 0:00:02]} Kf8 {[%emt 0:00:31]} 28. Rd8+ {[%emt 0:00:18]} Rxd8 {[%emt 0:00:01]} 29. Nxd8 {[%emt 0:00:01]} Ke7 {[%emt 0:00:14]} 30. Nc6+ {[%emt 0:00:02]} Kd6 {[%emt 0:00:17]} 31. Nd4 {[%emt 0:00:06]} g6 {[%emt 0:00:03]} 32. Kf1 {[%emt 0:00:24]} Bb2 {[%emt 0:00:08]} 33. Nc2 {[%emt 0:00:40]} Bc3 {[%emt 0:00:07]} 34. Ke2 {[%emt 0:00:07]} Kd5 {[%emt 0:00:16]} 35. Na3 {[%emt 0:00:31]} f5 {[%emt 0:00:12]} 36. Nc4 {[%emt 0:01:15]} g5 {[%emt 0:00:36]} 37. f3 {[%emt 0:00:12]} h5 {[%emt 0:00:12]} 38. fxe4+ {[%emt 0:00:17]} fxe4 {[%emt 0:00:06]} 39. h3 {[%emt 0:00:02]} Bb4 {[%emt 0:00:39]} 40. g4 {[%emt 0:00:06]} hxg4 {[%emt 0:00:04]} 41. hxg4 {[%emt 0:00:01]} Bc3 {[%emt 0:00:05]} 42. Kd1 {[%emt 0:00:05]} Kc5 {[%emt 0:00:26]} 43. Kc2 {[%emt 0:00:08]} Be1 {[%emt 0:00:09]} 44. a3 a5 {[%emt 0:00:14]} 45. Nb2 {[%emt 0:00:25]} Bf2 {[%emt 0:00:08]} 46. Kd2 {[%emt 0:00:03]} Bg3 {[%emt 0:00:06]} 47. Nd1 {[%emt 0:00:03]} Be5 {[%emt 0:00:13]} 48. Nc3 {[%emt 0:00:01]} 1-0

[Event "Hungarian Rapid-ch 2022"]
[Site "Ajka"]
[Date "2022.07.16"]
[Round "5.10"]
[White "Kantor, Gergely"]
[Black "Margl, Roland"]
[Result "1/2-1/2"]
[ECO "D35"]
[WhiteElo "2582"]
[BlackElo "2312"]
[Annotator "ChessBase"]
[PlyCount "124"]
[EventDate "2022.07.15"]
[EventType "swiss"]
[EventCountry "HUN"]
[SourceTitle "playchess.com"]
[Source "ChessBase"]
[SourceQuality "1"]
[TimeControl "900+10"]

1. d4 {[%emt 0:00:14]} d5 {[%emt 0:00:11]} 2. c4 {[%emt 0:00:01]} e6 {[%emt 0:00:01]} 3. Nc3 {[%emt 0:00:02]} Nf6 {[%emt 0:00:02]} 4. cxd5 {[%emt 0:00:01]} Nxd5 {[%emt 0:00:13]} 5. e4 {[%emt 0:00:02]} Nxc3 {[%emt 0:00:01]} 6. bxc3 {[%emt 0:00:02]} c5 {[%emt 0:00:01]} 7. a3 {[%emt 0:01:05]} cxd4 {[%emt 0:00:11]} 8. cxd4 {[%emt 0:00:02]} e5 {[%emt 0:00:01]} 9. d5 {[%emt 0:00:22]} Bd6 {[%emt 0:00:27]} 10. Nf3 {[%emt 0:00:05]} O-O {[%emt 0:00:10]} 11. Be2 {[%emt 0:00:04]} Nd7 {[%emt 0:00:15]} 12. Be3 {[%emt 0:00:02]} a6 {[%emt 0:00:59]} 13. O-O {[%emt 0:00:09]} b5 {[%emt 0:00:04]} 14. a4 {[%emt 0:00:03]} Rb8 {[%emt 0:03:54]} 15. axb5 {[%emt 0:01:34]} axb5 {[%emt 0:00:01]} 16. Nd2 {[%emt 0:00:17]} Bc5 {[%emt 0:02:14]} 17. Bxc5 {[%emt 0:00:12]} Nxc5 {[%emt 0:00:02]} 18. Qc2 {[%emt 0:00:01]} Nb7 {[%emt 0:04:46]} 19. Bxb5 {[%emt 0:00:29]} Nd6 {[%emt 0:00:00]} 20. Bc6 {[%emt 0:00:13]} Rb4 {[%emt 0:00:10]} 21. Qc3 {[%emt 0:00:43]} Rd4 {[%emt 0:00:20]} 22. f3 {[%emt 0:00:39]} Qe7 {[%emt 0:00:47]} 23. Rf2 {[%emt 0:01:56]} f5 {[%emt 0:00:12]} 24. exf5 {[%emt 0:00:07]} Bxf5 {[%emt 0:00:06]} 25. Re1 {[%emt 0:00:05]} Qf6 {[%emt 0:00:24]} 26. Qe3 {[%emt 0:03:33]} Nf7 {[%emt 0:00:02]} 27. Nf1 {[%emt 0:00:26]} Rb8 {[%emt 0:00:36]} 28. Ng3 {[%emt 0:00:26]} Bg6 {[%emt 0:00:03]} 29. Rd2 {[%emt 0:00:20]} Rxd2 {[%emt 0:00:49]} 30. Qxd2 h6 31. Qc3 {[%emt 0:00:19]} Qd6 {[%emt 0:00:14]} 32. Nf1 {[%emt 0:00:43]} Qb4 {[%emt 0:01:31]} 33. Qxb4 {[%emt 0:00:18]} Rxb4 {[%emt 0:00:01]} 34. Ne3 {[%emt 0:00:03]} Rd4 {[%emt 0:00:10]} 35. Kf2 {[%emt 0:00:44]} Kf8 {[%emt 0:00:07]} 36. Ng4 {[%emt 0:00:23]} e4 {[%emt 0:00:03]} 37. Kg3 {[%emt 0:00:34]} Nd6 {[%emt 0:00:11]} 38. Ne5 {[%emt 0:00:18]} Bf5 {[%emt 0:00:03]} 39. f4 {[%emt 0:01:27]} Rd2 {[%emt 0:00:06]} 40. h4 {[%emt 0:00:35]} Ke7 {[%emt 0:00:24]} 41. h5 {[%emt 0:00:08]} Kf6 {[%emt 0:00:17]} 42. Kh2 {[%emt 0:00:07]} Nf7 {[%emt 0:00:36]} 43. Nc4 {[%emt 0:00:04]} Rd4 {[%emt 0:00:10]} 44. Ne3 {[%emt 0:00:02]} Rd2 {[%emt 0:00:11]} 45. Kg3 {[%emt 0:00:56]} Nd6 {[%emt 0:00:02]} 46. Kh4 {[%emt 0:00:20]} Bc8 {[%emt 0:00:12]} 47. g4 {[%emt 0:00:04]} Rf2 {[%emt 0:00:10]} 48. Rf1 {[%emt 0:01:44]} Re2 {[%emt 0:00:01]} 49. Nd1 {[%emt 0:00:01]} Rg2 {[%emt 0:00:06]} 50. Ne3 {[%emt 0:00:23]} Re2 {[%emt 0:00:01]} 51. Nd1 {[%emt 0:00:43]} Rg2 {[%emt 0:00:01]} 52. f5 {[%emt 0:00:04]} Ke5 {[%emt 0:00:36]} 53. Kh3 {[%emt 0:00:14]} Rd2 {[%emt 0:00:13]} 54. Kg3 {[%emt 0:00:09]} Rd3+ {[%emt 0:00:07]} 55. Kh4 {[%emt 0:00:06]} e3 {[%emt 0:00:20]} 56. Re1 {[%emt 0:00:10]} Kf4 {[%emt 0:00:04]} 57. Ba4 {[%emt 0:00:17]} Bb7 {[%emt 0:00:16]} 58. Rf1+ {[%emt 0:00:07]} Ke5 {[%emt 0:00:02]} 59. Bc2 {[%emt 0:00:02]} Ra3 {[%emt 0:00:02]} 60. Re1 {[%emt 0:00:05]} Kf4 {[%emt 0:00:01]} 61. Rf1+ {[%emt 0:00:01]} Ke5 {[%emt 0:00:01]} 62. Re1 {[%emt 0:00:02]} Kf4 {[%emt 0:00:01]} 1/2-1/2

[Event "Hungarian Rapid-ch 2022"]
[Site "Ajka"]
[Date "2022.07.16"]
[Round "5.11"]
[White "Mihok, Oliver"]
[Black "Kokeny, Gabor"]
[Result "1-0"]
[ECO "A06"]
[WhiteElo "2549"]
[BlackElo "2204"]
[Annotator "ChessBase"]
[PlyCount "57"]
[EventDate "2022.07.15"]
[EventType "swiss"]
[EventCountry "HUN"]
[SourceTitle "playchess.com"]
[Source "ChessBase"]
[SourceQuality "1"]
[TimeControl "900+10"]

1. Nf3 {[%emt 0:00:13]} d5 {[%emt 0:00:26]} 2. b3 {[%emt 0:00:02]} Nf6 {[%emt 0:00:27]} 3. Bb2 {[%emt 0:00:01]} c5 {[%emt 0:00:57]} 4. e3 {[%emt 0:00:06]} e6 {[%emt 0:00:25]} 5. c4 {[%emt 0:01:38]} Nc6 {[%emt 0:01:39]} 6. cxd5 {[%emt 0:00:03]} exd5 {[%emt 0:00:21]} 7. Bb5 {[%emt 0:00:23]} Bd7 {[%emt 0:01:31]} 8. O-O {[%emt 0:00:24]} Be7 {[%emt 0:00:09]} 9. d4 cxd4 {[%emt 0:00:35]} 10. Nxd4 {[%emt 0:00:36]} O-O {[%emt 0:00:13]} 11. Nc3 {[%emt 0:01:23]} Ne5 {[%emt 0:01:42]} 12. Be2 {[%emt 0:00:31]} Rc8 {[%emt 0:00:08]} 13. h3 {[%emt 0:00:47]} a6 {[%emt 0:00:29]} 14. Nf3 {[%emt 0:00:21]} Nxf3+ {[%emt 0:01:23]} 15. Bxf3 {[%emt 0:00:01]} Bc6 {[%emt 0:00:13]} 16. Qd4 {[%emt 0:00:21]} Qa5 {[%emt 0:00:45]} 17. a3 {[%emt 0:00:58]} Bc5 {[%emt 0:00:34]} 18. Qh4 {[%emt 0:00:48]} Qb6 {[%emt 0:00:07]} 19. b4 {[%emt 0:00:17]} d4 {[%emt 0:00:52]} 20. Nd1 {[%emt 0:00:34]} Be7 {[%emt 0:03:35]} 21. Bxd4 {[%emt 0:00:02]} Qd8 {[%emt 0:00:12]} 22. Bxc6 {[%emt 0:00:37]} Rxc6 {[%emt 0:00:00]} 23. Qg3 {[%emt 0:00:53]} Qc8 {[%emt 0:01:12]} 24. Nb2 {[%emt 0:00:28]} Qf5 {[%emt 0:00:09]} 25. Rfd1 {[%emt 0:01:11]} h5 {[%emt 0:00:55]} 26. Nd3 {[%emt 0:00:10]} h4 {[%emt 0:00:16]} 27. Qxh4 {[%emt 0:00:29]} Nd5 {[%emt 0:00:08]} 28. Qg4 {[%emt 0:00:24]} Qxg4 {[%emt 0:00:08]} 29. hxg4 {[%emt 0:00:01]} 1-0

[Event "Hungarian Rapid-ch 2022"]
[Site "Ajka"]
[Date "2022.07.16"]
[Round "5.12"]
[White "Miszler, Levente"]
[Black "Bagi, Mate"]
[Result "1/2-1/2"]
[ECO "A05"]
[WhiteElo "2243"]
[BlackElo "2460"]
[Annotator "ChessBase"]
[PlyCount "80"]
[EventDate "2022.07.15"]
[EventType "swiss"]
[EventCountry "HUN"]
[SourceTitle "playchess.com"]
[Source "ChessBase"]
[SourceQuality "1"]
[TimeControl "900+10"]

1. Nf3 {[%emt 0:00:13]} Nf6 {[%emt 0:00:13]} 2. c4 {[%emt 0:00:07]} b6 {[%emt 0:00:07]} 3. g3 {[%emt 0:00:03]} Bb7 {[%emt 0:00:02]} 4. Bg2 {[%emt 0:00:01]} g6 {[%emt 0:00:13]} 5. O-O {[%emt 0:00:04]} Bg7 {[%emt 0:00:02]} 6. d4 {[%emt 0:00:03]} O-O {[%emt 0:00:04]} 7. Nc3 {[%emt 0:00:03]} Ne4 {[%emt 0:00:10]} 8. Qc2 {[%emt 0:00:12]} Nxc3 {[%emt 0:00:32]} 9. Qxc3 {[%emt 0:00:03]} c5 {[%emt 0:01:00]} 10. Be3 {[%emt 0:00:09]} Nc6 {[%emt 0:00:41]} 11. Qd2 {[%emt 0:00:27]} Nxd4 {[%emt 0:00:57]} 12. Nxd4 {[%emt 0:00:10]} Bxg2 {[%emt 0:00:08]} 13. Kxg2 {[%emt 0:00:12]} cxd4 {[%emt 0:00:03]} 14. Bxd4 {[%emt 0:00:03]} Qc7 {[%emt 0:00:28]} 15. Bxg7 {[%emt 0:00:33]} Kxg7 {[%emt 0:00:02]} 16. Qd4+ {[%emt 0:00:03]} Kg8 {[%emt 0:00:15]} 17. Rfd1 {[%emt 0:00:05]} d6 {[%emt 0:00:09]} 18. Rac1 {[%emt 0:00:12]} Qc5 {[%emt 0:00:32]} 19. b3 {[%emt 0:00:46]} Rfc8 {[%emt 0:00:26]} 20. Qb2 {[%emt 0:00:25]} b5 {[%emt 0:01:04]} 21. e3 {[%emt 0:02:39]} a5 {[%emt 0:00:48]} 22. cxb5 {[%emt 0:00:30]} Qxb5 {[%emt 0:00:05]} 23. Rxc8+ {[%emt 0:00:32]} Rxc8 {[%emt 0:00:02]} 24. Rc1 {[%emt 0:00:02]} Rc6 {[%emt 0:01:01]} 25. Rxc6 {[%emt 0:00:36]} Qxc6+ {[%emt 0:00:02]} 26. Kg1 {[%emt 0:00:02]} Qd5 {[%emt 0:01:10]} 27. Qd4 {[%emt 0:00:55]} Qf5 {[%emt 0:00:48]} 28. Qa4 {[%emt 0:00:29]} Kg7 {[%emt 0:01:02]} 29. a3 {[%emt 0:00:17]} h5 {[%emt 0:00:36]} 30. h4 {[%emt 0:00:09]} Qb1+ {[%emt 0:00:17]} 31. Kg2 {[%emt 0:00:07]} Qf5 {[%emt 0:00:09]} 32. b4 {[%emt 0:00:31]} Qd5+ {[%emt 0:01:14]} 33. Kg1 {[%emt 0:00:14]} axb4 {[%emt 0:00:32]} 34. axb4 {[%emt 0:01:13]} Qc4 {[%emt 0:00:34]} 35. Qa5 {[%emt 0:01:58]} Qc1+ {[%emt 0:00:10]} 36. Kg2 {[%emt 0:00:19]} Qc6+ {[%emt 0:00:05]} 37. Kh2 {[%emt 0:00:19]} Qc2 {[%emt 0:00:27]} 38. Kg1 {[%emt 0:01:22]} Qc1+ {[%emt 0:00:09]} 39. Kg2 {[%emt 0:00:05]} Qc6+ {[%emt 0:00:03]} 40. Kg1 {[%emt 0:00:02]} Qc1+ {[%emt 0:00:08]} 1/2-1/2

[Event "Hungarian Rapid-ch 2022"]
[Site "Ajka"]
[Date "2022.07.16"]
[Round "5.13"]
[White "Czebe, Attila"]
[Black "Gombocz, Ferenc Jr."]
[Result "1-0"]
[ECO "A36"]
[WhiteElo "2385"]
[BlackElo "2229"]
[Annotator "ChessBase"]
[PlyCount "71"]
[EventDate "2022.07.15"]
[EventType "swiss"]
[EventCountry "HUN"]
[SourceTitle "playchess.com"]
[Source "ChessBase"]
[SourceQuality "1"]
[TimeControl "900+10"]

1. c4 {[%emt 0:00:15]} c5 {[%emt 0:00:14]} 2. Nc3 {[%emt 0:00:15]} Nc6 {[%emt 0:00:04]} 3. g3 {[%emt 0:00:05]} g6 {[%emt 0:00:02]} 4. Bg2 {[%emt 0:00:02]} Bg7 {[%emt 0:00:03]} 5. e3 {[%emt 0:01:00]} e5 {[%emt 0:00:10]} 6. Nge2 {[%emt 0:00:02]} Nge7 {[%emt 0:00:09]} 7. O-O {[%emt 0:00:17]} O-O {[%emt 0:00:24]} 8. a3 {[%emt 0:00:02]} a6 {[%emt 0:01:55]} 9. b4 {[%emt 0:00:33]} d6 {[%emt 0:02:11]} 10. Rb1 {[%emt 0:00:02]} Rb8 {[%emt 0:00:29]} 11. bxc5 {[%emt 0:06:25]} dxc5 {[%emt 0:00:04]} 12. Nd5 {[%emt 0:00:35]} Nxd5 {[%emt 0:00:34]} 13. cxd5 {[%emt 0:00:01]} Ne7 {[%emt 0:00:25]} 14. e4 {[%emt 0:01:50]} b5 {[%emt 0:00:14]} 15. d3 {[%emt 0:00:01]} Qd6 {[%emt 0:00:55]} 16. f4 {[%emt 0:00:19]} f6 {[%emt 0:00:31]} 17. fxe5 {[%emt 0:00:12]} fxe5 {[%emt 0:00:07]} 18. Rxf8+ {[%emt 0:00:02]} Bxf8 {[%emt 0:00:09]} 19. Bg5 {[%emt 0:00:17]} h6 {[%emt 0:00:20]} 20. Be3 {[%emt 0:00:01]} c4 {[%emt 0:01:55]} 21. dxc4 {[%emt 0:00:02]} bxc4 {[%emt 0:00:02]} 22. Rxb8 {[%emt 0:00:01]} Qxb8 {[%emt 0:00:02]} 23. d6 {[%emt 0:00:01]} Be6 {[%emt 0:03:10]} 24. dxe7 {[%emt 0:00:15]} Bxe7 {[%emt 0:00:02]} 25. Nc3 {[%emt 0:01:14]} Bxa3 {[%emt 0:00:18]} 26. Bf1 {[%emt 0:00:05]} Bb2 {[%emt 0:01:12]} 27. Nd5 {[%emt 0:00:31]} c3 {[%emt 0:01:27]} 28. Bxa6 {[%emt 0:00:10]} Kg7 {[%emt 0:00:12]} 29. Bd3 {[%emt 0:00:04]} Qc8 {[%emt 0:01:07]} 30. Qc2 {[%emt 0:00:29]} Qc6 {[%emt 0:00:17]} 31. Qf2 {[%emt 0:00:48]} Bxd5 {[%emt 0:00:54]} 32. exd5 {[%emt 0:00:02]} Qxd5 {[%emt 0:00:06]} 33. Bc2 {[%emt 0:00:04]} Ba3 {[%emt 0:00:33]} 34. Qg2 {[%emt 0:00:39]} Qd7 {[%emt 0:00:18]} 35. Qe4 {[%emt 0:00:12]} Qd6 {[%emt 0:00:06]} 36. Qb7+ {[%emt 0:00:20]} 1-0